{"text_format":"1","workbook":"xlsx","n_sheets":11,"sheets":["Composition Divisions Ligue","Division 1","Division 2","Division 3","Division 4","Tableau Rencontres D1-2-3","Résultats des rencontres D1-2-3","Classement D1-2-3","Tableau Rencontres D4","Résultats des Rencontres D4","Classement D4"],"not_rendered":{"charts":0,"images":0,"macros":1,"external_links":0,"defined_names":5,"comments":0,"pivot_tables":0},"unopened":[],"bounds":{"document_bytes":16777216,"sheet_cells":100000,"rows_first":2000,"rows_last":500,"rows_between":2000,"halvings":0,"cell_chars":16384,"cell_head_chars":4096},"cells_cut":0,"cells_raw":0,"read":"whole","date_system":"1900"}

{"sheet":"Composition Divisions Ligue","index":0,"n_rows":45,"n_cols":3,"rows_kept":45,"cut":false,"hidden":true,"merged":[[1,0,3,2],[1,3,1,5],[42,0,42,2],[43,0,43,2],[44,0,44,2]]}
[]
["Golf Entreprise - Ligue des Pays de la Loire\nRépartition des 4 Divisions (Saison 2025)"]
[]
[]
[]
["1ère Division",null,"4ème Division\nPoule A"]
[]
["ASGEN",null,"2F OPEN 85-2"]
["2FOPEN 44 1",null,"ATSCAF 44-2"]
["CSAD 49",null,"ASGEN-2"]
["2F OPEN 49",null,"ASCM Nantes"]
["ASMN Nantes",null,"AGJSEP"]
["FAST 44",null,"ATSCAF 49"]
[]
["2ème Division",null,"4ème Division\nPoule B"]
[]
["AS SRT",null,"AL Crédit Mutuel"]
["ASGESNA",null,"CHU Nantes"]
["AIRBUS Nantes",null,"CE MMA Le Mans"]
["ASLAN",null,"SGTD Total-2"]
["SGTD Total",null,"AIRBUS NANTES 2"]
["AIRBUS St Naz",null,"AS BPGO "]
[]
["3ème Division\nPoule A",null,"4ème Division\nPoule C"]
[]
["2F OPEN 85",null,"AGCMA"]
["ASMN Nantes 2",null,"AIRBUS NANTES 3"]
["ASLAN 2",null,"MANITOU-2"]
["ATSCAF 44",null,"2F OPEN 85-3"]
["ORANGE MLK",null,"COSTA"]
["USAC",null,"ASAA"]
[]
["3ème Division\nPoule B",null,"4ème Division\nPoule D"]
[]
["ALC44",null,"TGS France Sport-2"]
["AS TONUS",null,"AGJSEP-2"]
["TGS France Sport",null,"USAC 2"]
["MANITOU",null,"ASCAEN"]
["PGA Police ",null,"ASCEMA"]
["2F OPEN 44 2",null,"CSAD 49"]
[]
[]
["Un grand merci à ces 48 équipes pour leur engagement dans ce championnat."]
["Merci de faire vivre le Golf d’Entreprise sur notre Ligue !"]
["Le Délégué…"]

{"sheet":"Division 1","index":1,"n_rows":22,"n_cols":10,"rows_kept":22,"cut":false,"hidden":true,"merged":[[1,5,1,9]]}
[]
[null,null,null,null,null,"Division 1"]
[]
[null,null,5,1,null,null,null,null,{"$f":"G15","v":"ASMN Nantes"},{"$f":"+G11","v":"ASGEN"}]
[null,"1er Journée",4,2,null,null,null,null,{"$f":"G14","v":"2F OPEN 49"},{"$f":"+G12","v":"2FOPEN 44 1"}]
[null,null,3,6,null,null,null,null,{"$f":"G13","v":"CSAD 49"},{"$f":"G16","v":"FAST 44"}]
[]
[null,null,2,3,null,null,null,null,{"$f":"+G12","v":"2FOPEN 44 1"},{"$f":"G13","v":"CSAD 49"}]
[null,"2ème",1,4,null,null,null,null,{"$f":"+G11","v":"ASGEN"},{"$f":"G14","v":"2F OPEN 49"}]
[null,null,6,5,null,null,null,null,{"$f":"G16","v":"FAST 44"},{"$f":"G15","v":"ASMN Nantes"}]
[null,null,null,null,null,1,{"$f":"'Composition Divisions Ligue'!A8","v":"ASGEN"}]
[null,null,3,1,null,2,{"$f":"'Composition Divisions Ligue'!A9","v":"2FOPEN 44 1"},null,{"$f":"G13","v":"CSAD 49"},{"$f":"+G11","v":"ASGEN"}]
[null,"3ème",2,6,null,3,{"$f":"'Composition Divisions Ligue'!A10","v":"CSAD 49"},null,{"$f":"+G12","v":"2FOPEN 44 1"},{"$f":"G16","v":"FAST 44"}]
[null,null,4,5,null,4,{"$f":"'Composition Divisions Ligue'!A11","v":"2F OPEN 49"},null,{"$f":"G14","v":"2F OPEN 49"},{"$f":"G15","v":"ASMN Nantes"}]
[null,null,null,null,null,5,{"$f":"'Composition Divisions Ligue'!A12","v":"ASMN Nantes"}]
[null,null,6,4,null,6,{"$f":"'Composition Divisions Ligue'!A13","v":"FAST 44"},null,{"$f":"G16","v":"FAST 44"},{"$f":"G14","v":"2F OPEN 49"}]
[null,"4ème",1,2,null,null,null,null,{"$f":"+G11","v":"ASGEN"},{"$f":"+G12","v":"2FOPEN 44 1"}]
[null,null,5,3,null,null,null,null,{"$f":"G15","v":"ASMN Nantes"},{"$f":"G13","v":"CSAD 49"}]
[]
[null,null,4,3,null,null,null,null,{"$f":"G14","v":"2F OPEN 49"},{"$f":"G13","v":"CSAD 49"}]
[null,"5ème",6,1,null,null," ",null,{"$f":"G16","v":"FAST 44"},{"$f":"+G11","v":"ASGEN"}]
[null,null,2,5,null,null,null,null,{"$f":"+G12","v":"2FOPEN 44 1"},{"$f":"G15","v":"ASMN Nantes"}]

{"sheet":"Division 2","index":2,"n_rows":22,"n_cols":10,"rows_kept":22,"cut":false,"hidden":true,"merged":[[1,5,1,9]]}
[]
[null,null,null,null,null,"Division 2"]
[]
[null,null,5,1,null,null,null,null,{"$f":"G15","v":"SGTD Total"},{"$f":"+G11","v":"AS SRT"}]
[null,"1er Journée",4,2,null,null,null,null,{"$f":"G14","v":"ASLAN"},{"$f":"+G12","v":"ASGESNA"}]
[null,null,3,6,null,null,null,null,{"$f":"G13","v":"AIRBUS Nantes"},{"$f":"G16","v":"AIRBUS St Naz"}]
[]
[null,null,2,3,null,null,null,null,{"$f":"+G12","v":"ASGESNA"},{"$f":"G13","v":"AIRBUS Nantes"}]
[null,"2ème",1,4,null,null,null,null,{"$f":"+G11","v":"AS SRT"},{"$f":"G14","v":"ASLAN"}]
[null,null,6,5,null,null,null,null,{"$f":"G16","v":"AIRBUS St Naz"},{"$f":"G15","v":"SGTD Total"}]
[null,null,null,null,null,1,{"$f":"'Composition Divisions Ligue'!A17","v":"AS SRT"}]
[null,null,3,1,null,2,{"$f":"'Composition Divisions Ligue'!A18","v":"ASGESNA"},null,{"$f":"G13","v":"AIRBUS Nantes"},{"$f":"+G11","v":"AS SRT"}]
[null,"3ème",2,6,null,3,{"$f":"'Composition Divisions Ligue'!A19","v":"AIRBUS Nantes"},null,{"$f":"+G12","v":"ASGESNA"},{"$f":"G16","v":"AIRBUS St Naz"}]
[null,null,4,5,null,4,{"$f":"'Composition Divisions Ligue'!A20","v":"ASLAN"},null,{"$f":"G14","v":"ASLAN"},{"$f":"G15","v":"SGTD Total"}]
[null,null,null,null,null,5,{"$f":"'Composition Divisions Ligue'!A21","v":"SGTD Total"}]
[null,null,6,4,null,6,{"$f":"'Composition Divisions Ligue'!A22","v":"AIRBUS St Naz"},null,{"$f":"G16","v":"AIRBUS St Naz"},{"$f":"G14","v":"ASLAN"}]
[null,"4ème",1,2,null,null,null,null,{"$f":"+G11","v":"AS SRT"},{"$f":"+G12","v":"ASGESNA"}]
[null,null,5,3,null,null,null,null,{"$f":"G15","v":"SGTD Total"},{"$f":"G13","v":"AIRBUS Nantes"}]
[]
[null,null,4,3,null,null,null,null,{"$f":"G14","v":"ASLAN"},{"$f":"G13","v":"AIRBUS Nantes"}]
[null,"5ème",6,1,null,null," ",null,{"$f":"G16","v":"AIRBUS St Naz"},{"$f":"+G11","v":"AS SRT"}]
[null,null,2,5,null,null,null,null,{"$f":"+G12","v":"ASGESNA"},{"$f":"G15","v":"SGTD Total"}]

{"sheet":"Division 3","index":3,"n_rows":22,"n_cols":16,"rows_kept":22,"cut":false,"hidden":true,"merged":[[1,5,1,9],[1,11,1,15]]}
[]
[null,null,null,null,null,"Division 3 Poule A",null,null,null,null,null,"Division 3 Poule B"]
[]
[null,null,5,1,null,null,null,null,{"$f":"G15","v":"ORANGE MLK"},{"$f":"+G11","v":"2F OPEN 85"},null,null,null,null,{"$f":"M15","v":"PGA Police "},{"$f":"+M11","v":"ALC44"}]
[null,"1er Journée",4,2,null,null,null,null,{"$f":"G14","v":"ATSCAF 44"},{"$f":"+G12","v":"ASMN Nantes 2"},null,null,null,null,{"$f":"M14","v":"MANITOU"},{"$f":"+M12","v":"AS TONUS"}]
[null,null,3,6,null,null,null,null,{"$f":"G13","v":"ASLAN 2"},{"$f":"G16","v":"USAC"},null,null,null,null,{"$f":"M13","v":"TGS France Sport"},{"$f":"M16","v":"2F OPEN 44 2"}]
[]
[null,null,2,3,null,null,null,null,{"$f":"+G12","v":"ASMN Nantes 2"},{"$f":"G13","v":"ASLAN 2"},null,null,null,null,{"$f":"+M12","v":"AS TONUS"},{"$f":"M13","v":"TGS France Sport"}]
[null,"2ème",1,4,null,null,null,null,{"$f":"+G11","v":"2F OPEN 85"},{"$f":"G14","v":"ATSCAF 44"},null,null,null,null,{"$f":"+M11","v":"ALC44"},{"$f":"M14","v":"MANITOU"}]
[null,null,6,5,null,null,null,null,{"$f":"G16","v":"USAC"},{"$f":"G15","v":"ORANGE MLK"},null,null,null,null,{"$f":"M16","v":"2F OPEN 44 2"},{"$f":"M15","v":"PGA Police "}]
[null,null,null,null,null,1,{"$f":"'Composition Divisions Ligue'!A26","v":"2F OPEN 85"},null,null,null,null,1,{"$f":"'Composition Divisions Ligue'!A35","v":"ALC44"}]
[null,null,3,1,null,2,{"$f":"'Composition Divisions Ligue'!A27","v":"ASMN Nantes 2"},null,{"$f":"G13","v":"ASLAN 2"},{"$f":"+G11","v":"2F OPEN 85"},null,2,{"$f":"'Composition Divisions Ligue'!A36","v":"AS TONUS"},null,{"$f":"M13","v":"TGS France Sport"},{"$f":"+M11","v":"ALC44"}]
[null,"3ème",2,6,null,3,{"$f":"'Composition Divisions Ligue'!A28","v":"ASLAN 2"},null,{"$f":"+G12","v":"ASMN Nantes 2"},{"$f":"G16","v":"USAC"},null,3,{"$f":"'Composition Divisions Ligue'!A37","v":"TGS France Sport"},null,{"$f":"+M12","v":"AS TONUS"},{"$f":"M16","v":"2F OPEN 44 2"}]
[null,null,4,5,null,4,{"$f":"'Composition Divisions Ligue'!A29","v":"ATSCAF 44"},null,{"$f":"G14","v":"ATSCAF 44"},{"$f":"G15","v":"ORANGE MLK"},null,4,{"$f":"'Composition Divisions Ligue'!A38","v":"MANITOU"},null,{"$f":"M14","v":"MANITOU"},{"$f":"M15","v":"PGA Police "}]
[null,null,null,null,null,5,{"$f":"'Composition Divisions Ligue'!A30","v":"ORANGE MLK"},null,null,null,null,5,{"$f":"'Composition Divisions Ligue'!A39","v":"PGA Police "}]
[null,null,6,4,null,6,{"$f":"'Composition Divisions Ligue'!A31","v":"USAC"},null,{"$f":"G16","v":"USAC"},{"$f":"G14","v":"ATSCAF 44"},null,6,{"$f":"'Composition Divisions Ligue'!A40","v":"2F OPEN 44 2"},null,{"$f":"M16","v":"2F OPEN 44 2"},{"$f":"M14","v":"MANITOU"}]
[null,"4ème",1,2,null,null,null,null,{"$f":"+G11","v":"2F OPEN 85"},{"$f":"+G12","v":"ASMN Nantes 2"},null,null,null,null,{"$f":"+M11","v":"ALC44"},{"$f":"+M12","v":"AS TONUS"}]
[null,null,5,3,null,null,null,null,{"$f":"G15","v":"ORANGE MLK"},{"$f":"G13","v":"ASLAN 2"},null,null,null,null,{"$f":"M15","v":"PGA Police "},{"$f":"M13","v":"TGS France Sport"}]
[]
[null,null,4,3,null,null,null,null,{"$f":"G14","v":"ATSCAF 44"},{"$f":"G13","v":"ASLAN 2"},null,null,null,null,{"$f":"M14","v":"MANITOU"},{"$f":"M13","v":"TGS France Sport"}]
[null,"5ème",6,1,null,null," ",null,{"$f":"G16","v":"USAC"},{"$f":"+G11","v":"2F OPEN 85"},null,null," ",null,{"$f":"M16","v":"2F OPEN 44 2"},{"$f":"+M11","v":"ALC44"}]
[null,null,2,5,null,null,null,null,{"$f":"+G12","v":"ASMN Nantes 2"},{"$f":"G15","v":"ORANGE MLK"},null,null,null,null,{"$f":"+M12","v":"AS TONUS"},{"$f":"M15","v":"PGA Police "}]

{"sheet":"Division 4","index":4,"n_rows":22,"n_cols":28,"rows_kept":22,"cut":false,"hidden":true,"merged":[[1,5,1,9],[1,11,1,15],[1,17,1,21],[1,23,1,27]]}
[]
[null,null,null,null,null,"Division 4 Poule A",null,null,null,null,null,"Division 4 Poule B",null,null,null,null,null,"Division 4 Poule C",null,null,null,null,null,"Division 4 Poule D"]
[]
[null,null,5,1,null,null,null,null,{"$f":"G15","v":"AGJSEP"},{"$f":"+G11","v":"2F OPEN 85-2"},null,null,null,null,{"$f":"M15","v":"AIRBUS NANTES 2"},{"$f":"+M11","v":"AL Crédit Mutuel"},null,null,null,null,{"$f":"S15","v":"COSTA"},{"$f":"+S11","v":"AGCMA"},null,null,null,null,{"$f":"Y15","v":"ASCEMA"},{"$f":"+Y11","v":"TGS France Sport-2"}]
[null,"1er Journée",4,2,null,null,null,null,{"$f":"G14","v":"ASCM Nantes"},{"$f":"+G12","v":"ATSCAF 44-2"},null,null,null,null,{"$f":"M14","v":"SGTD Total-2"},{"$f":"+M12","v":"CHU Nantes"},null,null,null,null,{"$f":"S14","v":"2F OPEN 85-3"},{"$f":"+S12","v":"AIRBUS NANTES 3"},null,null,null,null,{"$f":"Y14","v":"ASCAEN"},{"$f":"+Y12","v":"AGJSEP-2"}]
[null,null,3,6,null,null,null,null,{"$f":"G13","v":"ASGEN-2"},{"$f":"G16","v":"ATSCAF 49"},null,null,null,null,{"$f":"M13","v":"CE MMA Le Mans"},{"$f":"M16","v":"AS BPGO "},null,null,null,null,{"$f":"S13","v":"MANITOU-2"},{"$f":"S16","v":"ASAA"},null,null,null,null,{"$f":"Y13","v":"USAC 2"},{"$f":"Y16","v":"CSAD 49"}]
[]
[null,null,2,3,null,null,null,null,{"$f":"+G12","v":"ATSCAF 44-2"},{"$f":"G13","v":"ASGEN-2"},null,null,null,null,{"$f":"+M12","v":"CHU Nantes"},{"$f":"M13","v":"CE MMA Le Mans"},null,null,null,null,{"$f":"+S12","v":"AIRBUS NANTES 3"},{"$f":"S13","v":"MANITOU-2"},null,null,null,null,{"$f":"+Y12","v":"AGJSEP-2"},{"$f":"Y13","v":"USAC 2"}]
[null,"2ème",1,4,null,null,null,null,{"$f":"+G11","v":"2F OPEN 85-2"},{"$f":"G14","v":"ASCM Nantes"},null,null,null,null,{"$f":"+M11","v":"AL Crédit Mutuel"},{"$f":"M14","v":"SGTD Total-2"},null,null,null,null,{"$f":"+S11","v":"AGCMA"},{"$f":"S14","v":"2F OPEN 85-3"},null,null,null,null,{"$f":"+Y11","v":"TGS France Sport-2"},{"$f":"Y14","v":"ASCAEN"}]
[null,null,6,5,null,null,null,null,{"$f":"G16","v":"ATSCAF 49"},{"$f":"G15","v":"AGJSEP"},null,null,null,null,{"$f":"M16","v":"AS BPGO "},{"$f":"M15","v":"AIRBUS NANTES 2"},null,null,null,null,{"$f":"S16","v":"ASAA"},{"$f":"S15","v":"COSTA"},null,null,null,null,{"$f":"Y16","v":"CSAD 49"},{"$f":"Y15","v":"ASCEMA"}]
[null,null,null,null,null,1,{"$f":"'Composition Divisions Ligue'!C8","v":"2F OPEN 85-2"},null,null,null,null,1,{"$f":"'Composition Divisions Ligue'!C17","v":"AL Crédit Mutuel"},null,null,null,null,1,{"$f":"'Composition Divisions Ligue'!C26","v":"AGCMA"},null,null,null,null,1,{"$f":"'Composition Divisions Ligue'!C35","v":"TGS France Sport-2"}]
[null,null,3,1,null,2,{"$f":"'Composition Divisions Ligue'!C9","v":"ATSCAF 44-2"},null,{"$f":"G13","v":"ASGEN-2"},{"$f":"+G11","v":"2F OPEN 85-2"},null,2,{"$f":"'Composition Divisions Ligue'!C18","v":"CHU Nantes"},null,{"$f":"M13","v":"CE MMA Le Mans"},{"$f":"+M11","v":"AL Crédit Mutuel"},null,2,{"$f":"'Composition Divisions Ligue'!C27","v":"AIRBUS NANTES 3"},null,{"$f":"S13","v":"MANITOU-2"},{"$f":"+S11","v":"AGCMA"},null,2,{"$f":"'Composition Divisions Ligue'!C36","v":"AGJSEP-2"},null,{"$f":"Y13","v":"USAC 2"},{"$f":"+Y11","v":"TGS France Sport-2"}]
[null,"3ème",2,6,null,3,{"$f":"'Composition Divisions Ligue'!C10","v":"ASGEN-2"},null,{"$f":"+G12","v":"ATSCAF 44-2"},{"$f":"G16","v":"ATSCAF 49"},null,3,{"$f":"'Composition Divisions Ligue'!C19","v":"CE MMA Le Mans"},null,{"$f":"+M12","v":"CHU Nantes"},{"$f":"M16","v":"AS BPGO "},null,3,{"$f":"'Composition Divisions Ligue'!C28","v":"MANITOU-2"},null,{"$f":"+S12","v":"AIRBUS NANTES 3"},{"$f":"S16","v":"ASAA"},null,3,{"$f":"'Composition Divisions Ligue'!C37","v":"USAC 2"},null,{"$f":"+Y12","v":"AGJSEP-2"},{"$f":"Y16","v":"CSAD 49"}]
[null,null,4,5,null,4,{"$f":"'Composition Divisions Ligue'!C11","v":"ASCM Nantes"},null,{"$f":"G14","v":"ASCM Nantes"},{"$f":"G15","v":"AGJSEP"},null,4,{"$f":"'Composition Divisions Ligue'!C20","v":"SGTD Total-2"},null,{"$f":"M14","v":"SGTD Total-2"},{"$f":"M15","v":"AIRBUS NANTES 2"},null,4,{"$f":"'Composition Divisions Ligue'!C29","v":"2F OPEN 85-3"},null,{"$f":"S14","v":"2F OPEN 85-3"},{"$f":"S15","v":"COSTA"},null,4,{"$f":"'Composition Divisions Ligue'!C38","v":"ASCAEN"},null,{"$f":"Y14","v":"ASCAEN"},{"$f":"Y15","v":"ASCEMA"}]
[null,null,null,null,null,5,{"$f":"'Composition Divisions Ligue'!C12","v":"AGJSEP"},null,null,null,null,5,{"$f":"'Composition Divisions Ligue'!C21","v":"AIRBUS NANTES 2"},null,null,null,null,5,{"$f":"'Composition Divisions Ligue'!C30","v":"COSTA"},null,null,null,null,5,{"$f":"'Composition Divisions Ligue'!C39","v":"ASCEMA"}]
[null,null,6,4,null,6,{"$f":"'Composition Divisions Ligue'!C13","v":"ATSCAF 49"},null,{"$f":"G16","v":"ATSCAF 49"},{"$f":"G14","v":"ASCM Nantes"},null,6,{"$f":"'Composition Divisions Ligue'!C22","v":"AS BPGO "},null,{"$f":"M16","v":"AS BPGO "},{"$f":"M14","v":"SGTD Total-2"},null,6,{"$f":"'Composition Divisions Ligue'!C31","v":"ASAA"},null,{"$f":"S16","v":"ASAA"},{"$f":"S14","v":"2F OPEN 85-3"},null,6,{"$f":"'Composition Divisions Ligue'!C40","v":"CSAD 49"},null,{"$f":"Y16","v":"CSAD 49"},{"$f":"Y14","v":"ASCAEN"}]
[null,"4ème",1,2,null,null,null,null,{"$f":"+G11","v":"2F OPEN 85-2"},{"$f":"+G12","v":"ATSCAF 44-2"},null,null,null,null,{"$f":"+M11","v":"AL Crédit Mutuel"},{"$f":"+M12","v":"CHU Nantes"},null,null,null,null,{"$f":"+S11","v":"AGCMA"},{"$f":"+S12","v":"AIRBUS NANTES 3"},null,null,null,null,{"$f":"+Y11","v":"TGS France Sport-2"},{"$f":"+Y12","v":"AGJSEP-2"}]
[null,null,5,3,null,null,null,null,{"$f":"G15","v":"AGJSEP"},{"$f":"G13","v":"ASGEN-2"},null,null,null,null,{"$f":"M15","v":"AIRBUS NANTES 2"},{"$f":"M13","v":"CE MMA Le Mans"},null,null,null,null,{"$f":"S15","v":"COSTA"},{"$f":"S13","v":"MANITOU-2"},null,null,null,null,{"$f":"Y15","v":"ASCEMA"},{"$f":"Y13","v":"USAC 2"}]
[]
[null,null,4,3,null,null,null,null,{"$f":"G14","v":"ASCM Nantes"},{"$f":"G13","v":"ASGEN-2"},null,null,null,null,{"$f":"M14","v":"SGTD Total-2"},{"$f":"M13","v":"CE MMA Le Mans"},null,null,null,null,{"$f":"S14","v":"2F OPEN 85-3"},{"$f":"S13","v":"MANITOU-2"},null,null,null,null,{"$f":"Y14","v":"ASCAEN"},{"$f":"Y13","v":"USAC 2"}]
[null,"5ème",6,1,null,null," ",null,{"$f":"G16","v":"ATSCAF 49"},{"$f":"+G11","v":"2F OPEN 85-2"},null,null," ",null,{"$f":"M16","v":"AS BPGO "},{"$f":"+M11","v":"AL Crédit Mutuel"},null,null," ",null,{"$f":"S16","v":"ASAA"},{"$f":"+S11","v":"AGCMA"},null,null," ",null,{"$f":"Y16","v":"CSAD 49"},{"$f":"+Y11","v":"TGS France Sport-2"}]
[null,null,2,5,null,null,null,null,{"$f":"+G12","v":"ATSCAF 44-2"},{"$f":"G15","v":"AGJSEP"},null,null,null,null,{"$f":"+M12","v":"CHU Nantes"},{"$f":"M15","v":"AIRBUS NANTES 2"},null,null,null,null,{"$f":"+S12","v":"AIRBUS NANTES 3"},{"$f":"S15","v":"COSTA"},null,null,null,null,{"$f":"+Y12","v":"AGJSEP-2"},{"$f":"Y15","v":"ASCEMA"}]

{"sheet":"Tableau Rencontres D1-2-3","index":5,"n_rows":17,"n_cols":13,"rows_kept":17,"cut":false,"hidden":true,"merged":[[0,0,0,12],[1,1,1,2],[1,4,1,5],[1,7,1,8],[1,10,1,11],[2,0,4,0],[5,0,7,0],[8,0,10,0],[11,0,13,0],[14,0,16,0]]}
["Tableau des rencontres de 2026 pour les 1ère, 2ème et 3ème Divisions "]
["Manche","Division 1",null,"Trou 1","Division 2",null,"trou 10","Division 3\nPoule A",null,"Trou 1","Division 3\nPoule B",null,"Trou 10"]
["Manche 1\n14 mars 2026\nIle d’Or\nClub Organisateur\nASMN Nantes",{"$f":"'Division 1'!I4","v":"ASMN Nantes"},{"$f":"'Division 1'!J4","v":"ASGEN"},"9h00\n9h10",{"$f":"'Division 2'!I5","v":"ASLAN"},{"$f":"'Division 2'!J5","v":"ASGESNA"},"9h00\n9h10",{"$f":"'Division 3'!I4","v":"ORANGE MLK"},{"$f":"'Division 3'!J4","v":"2F OPEN 85"},"10h00\n10h10",{"$f":"'Division 3'!O4","v":"PGA Police "},{"$f":"'Division 3'!P4","v":"ALC44"},"10h00\n10h10"]
[null,{"$f":"'Division 1'!I5","v":"2F OPEN 49"},{"$f":"'Division 1'!J5","v":"2FOPEN 44 1"},"9h20\n9h30",{"$f":"'Division 2'!I4","v":"SGTD Total"},{"$f":"'Division 2'!J4","v":"AS SRT"},"9h20\n9h30",{"$f":"'Division 3'!I5","v":"ATSCAF 44"},{"$f":"'Division 3'!J5","v":"ASMN Nantes 2"},"10h20\n10h30",{"$f":"'Division 3'!O5","v":"MANITOU"},{"$f":"'Division 3'!P5","v":"AS TONUS"},"10h20\n10h30"]
[null,{"$f":"'Division 1'!I6","v":"CSAD 49"},{"$f":"'Division 1'!J6","v":"FAST 44"},"9h40\n9h50",{"$f":"'Division 2'!I6","v":"AIRBUS Nantes"},{"$f":"'Division 2'!J6","v":"AIRBUS St Naz"},"9h40\n9h50",{"$f":"'Division 3'!I6","v":"ASLAN 2"},{"$f":"'Division 3'!J6","v":"USAC"},"10h40\n10h50",{"$f":"'Division 3'!O6","v":"TGS France Sport"},{"$f":"'Division 3'!P6","v":"2F OPEN 44 2"},"10h40\n10h50"]
["Manche 2\n04 avril 2026\nPornic\nClub Organisateur\nAirbus Nantes",{"$f":"'Division 1'!I10","v":"FAST 44"},{"$f":"'Division 1'!J10","v":"ASMN Nantes"},"9h00\n9h10",{"$f":"'Division 2'!I8","v":"ASGESNA"},{"$f":"'Division 2'!J8","v":"AIRBUS Nantes"},"9h00\n9h10",{"$f":"'Division 3'!I8","v":"ASMN Nantes 2"},{"$f":"'Division 3'!J8","v":"ASLAN 2"},"10h00\n10h10",{"$f":"'Division 3'!O9","v":"ALC44"},{"$f":"'Division 3'!P9","v":"MANITOU"},"10h00\n10h10"]
[null,{"$f":"'Division 1'!I9","v":"ASGEN"},{"$f":"'Division 1'!J9","v":"2F OPEN 49"},"9h20\n9h30",{"$f":"'Division 2'!I9","v":"AS SRT"},{"$f":"'Division 2'!J9","v":"ASLAN"},"9h20\n9h30",{"$f":"'Division 3'!I9","v":"2F OPEN 85"},{"$f":"'Division 3'!J9","v":"ATSCAF 44"},"10h20\n10h30",{"$f":"'Division 3'!O8","v":"AS TONUS"},{"$f":"'Division 3'!P8","v":"TGS France Sport"},"10h20\n10h30"]
[null,{"$f":"'Division 1'!I8","v":"2FOPEN 44 1"},{"$f":"'Division 1'!J8","v":"CSAD 49"},"9h40\n9h50",{"$f":"'Division 2'!I10","v":"AIRBUS St Naz"},{"$f":"'Division 2'!J10","v":"SGTD Total"},"9h40\n9h50",{"$f":"'Division 3'!I10","v":"USAC"},{"$f":"'Division 3'!J10","v":"ORANGE MLK"},"10h40\n10h50",{"$f":"'Division 3'!O10","v":"2F OPEN 44 2"},{"$f":"'Division 3'!P10","v":"PGA Police "},"10h40\n10h50"]
["Manche 3\n05 septembre 2026\nCholet\nClub Organisateur\nCSAD 49",{"$f":"'Division 1'!I12","v":"CSAD 49"},{"$f":"'Division 1'!J12","v":"ASGEN"},"9h00\n9h10",{"$f":"'Division 2'!I12","v":"AIRBUS Nantes"},{"$f":"'Division 2'!J12","v":"AS SRT"},"9h00\n9h10",{"$f":"'Division 3'!I12","v":"ASLAN 2"},{"$f":"'Division 3'!J12","v":"2F OPEN 85"},"10h00\n10h10",{"$f":"'Division 3'!O12","v":"TGS France Sport"},{"$f":"'Division 3'!P12","v":"ALC44"},"10h00\n10h10"]
[null,{"$f":"'Division 1'!I13","v":"2FOPEN 44 1"},{"$f":"'Division 1'!J13","v":"FAST 44"},"9h20\n9h30",{"$f":"'Division 2'!I13","v":"ASGESNA"},{"$f":"'Division 2'!J13","v":"AIRBUS St Naz"},"9h20\n9h30",{"$f":"'Division 3'!I13","v":"ASMN Nantes 2"},{"$f":"'Division 3'!J13","v":"USAC"},"10h20\n10h30",{"$f":"'Division 3'!O13","v":"AS TONUS"},{"$f":"'Division 3'!P13","v":"2F OPEN 44 2"},"10h20\n10h30"]
[null,{"$f":"'Division 1'!I14","v":"2F OPEN 49"},{"$f":"'Division 1'!J14","v":"ASMN Nantes"},"9h40\n9h50",{"$f":"'Division 2'!I14","v":"ASLAN"},{"$f":"'Division 2'!J14","v":"SGTD Total"},"9h40\n9h50",{"$f":"'Division 3'!I14","v":"ATSCAF 44"},{"$f":"'Division 3'!J14","v":"ORANGE MLK"},"10h40\n10h50",{"$f":"'Division 3'!O14","v":"MANITOU"},{"$f":"'Division 3'!P14","v":"PGA Police "},"10h40\n10h50"]
["Manche 4\n26 septembre 2026\nPays de St Gilles\nClub Organisateur\nSGTD Total",{"$f":"'Division 1'!I17","v":"ASGEN"},{"$f":"'Division 1'!J17","v":"2FOPEN 44 1"},"9h00\n9h10",{"$f":"'Division 2'!I18","v":"SGTD Total"},{"$f":"'Division 2'!J18","v":"AIRBUS Nantes"},"9h00\n9h10",{"$f":"'Division 3'!I18","v":"ORANGE MLK"},{"$f":"'Division 3'!J18","v":"ASLAN 2"},"10h00\n10h10",{"$f":"'Division 3'!O16","v":"2F OPEN 44 2"},{"$f":"'Division 3'!P16","v":"MANITOU"},"10h00\n10h10"]
[null,{"$f":"'Division 1'!I16","v":"FAST 44"},{"$f":"'Division 1'!J16","v":"2F OPEN 49"},"9h20\n9h30",{"$f":"'Division 2'!I16","v":"AIRBUS St Naz"},{"$f":"'Division 2'!J16","v":"ASLAN"},"9h20\n9h30",{"$f":"'Division 3'!I17","v":"2F OPEN 85"},{"$f":"'Division 3'!J17","v":"ASMN Nantes 2"},"10h20\n10h30",{"$f":"'Division 3'!O17","v":"ALC44"},{"$f":"'Division 3'!P17","v":"AS TONUS"},"10h20\n10h30"]
[null,{"$f":"'Division 1'!I18","v":"ASMN Nantes"},{"$f":"'Division 1'!J18","v":"CSAD 49"},"9h40\n9h50",{"$f":"'Division 2'!I17","v":"AS SRT"},{"$f":"'Division 2'!J17","v":"ASGESNA"},"9h40\n9h50",{"$f":"'Division 3'!I16","v":"USAC"},{"$f":"'Division 3'!J16","v":"ATSCAF 44"},"10h40\n10h50",{"$f":"'Division 3'!O18","v":"PGA Police "},{"$f":"'Division 3'!P18","v":"TGS France Sport"},"10h40\n10h50"]
["Manche 5\n10 octobre 2026\nSablé\nClub Organisateur\n2F OPEN 49",{"$f":"'Division 1'!I20","v":"2F OPEN 49"},{"$f":"'Division 1'!J20","v":"CSAD 49"},"9h00\n9h10",{"$f":"'Division 2'!I20","v":"ASLAN"},{"$f":"'Division 2'!J20","v":"AIRBUS Nantes"},"9h00\n9h10",{"$f":"'Division 3'!I22","v":"ASMN Nantes 2"},{"$f":"'Division 3'!J22","v":"ORANGE MLK"},"10h00\n10h10",{"$f":"'Division 3'!O20","v":"MANITOU"},{"$f":"'Division 3'!P20","v":"TGS France Sport"},"10h00\n10h10"]
[null,{"$f":"'Division 1'!I21","v":"FAST 44"},{"$f":"'Division 1'!J21","v":"ASGEN"},"9h20\n9h30",{"$f":"'Division 2'!I21","v":"AIRBUS St Naz"},{"$f":"'Division 2'!J21","v":"AS SRT"},"9h20\n9h30",{"$f":"'Division 3'!I21","v":"USAC"},{"$f":"'Division 3'!J21","v":"2F OPEN 85"},"10h20\n10h30",{"$f":"'Division 3'!O22","v":"AS TONUS"},{"$f":"'Division 3'!P22","v":"PGA Police "},"10h20\n10h30"]
[null,{"$f":"'Division 1'!I22","v":"2FOPEN 44 1"},{"$f":"'Division 1'!J22","v":"ASMN Nantes"},"9h40\n9h50",{"$f":"'Division 2'!I22","v":"ASGESNA"},{"$f":"'Division 2'!J22","v":"SGTD Total"},"9h40\n9h50",{"$f":"'Division 3'!I20","v":"ATSCAF 44"},{"$f":"'Division 3'!J20","v":"ASLAN 2"},"10h40\n10h50",{"$f":"'Division 3'!O21","v":"2F OPEN 44 2"},{"$f":"'Division 3'!P21","v":"ALC44"},"10h40\n10h50"]

{"sheet":"Résultats des rencontres D1-2-3","index":6,"n_rows":32,"n_cols":29,"rows_kept":32,"cut":false,"hidden":true,"merged":[[1,1,1,27],[3,0,3,4],[3,6,3,10],[3,12,3,16],[3,18,3,22],[3,24,3,28],[5,12,5,16],[7,2,7,3],[7,8,7,9],[7,14,7,15],[7,20,7,21],[7,26,7,27],[12,12,12,16],[14,2,14,3],[14,8,14,9],[14,14,14,15],[14,20,14,21],[14,26,14,27],[19,12,19,16],[21,2,21,3],[21,8,21,9],[21,14,21,15],[21,20,21,21],[21,26,21,27],[26,12,26,16],[28,2,28,3],[28,8,28,9],[28,14,28,15],[28,20,28,21],[28,26,28,27]]}
[]
[null,"CHAMPIONNAT de LIGUE GOLF ENTREPRISE 2026 des DIVISIONS 1 - 2 et 3"]
[]
["1ère Manche 14 mars",null,null,null,null,null,"2ème Manche 04 avril",null,null,null,null,null,"3ème Manche 05 septembre",null,null,null,null,null,"4ème Manche 26 septembre",null,null,null,null,null,"5ème Manche 10 octobre"]
[]
[null,null,null,null,null,null,null,null,null,null,null,null,"DIVISION  1"]
[]
["D1","CLUB","SCORE",null,"CLUB",null,"D1","CLUB","SCORE",null,"CLUB",null,"D1","CLUB","SCORE",null,"CLUB",null,"D1","CLUB","SCORE",null,"CLUB",null,"D1","CLUB","SCORE",null,"CLUB"]
[null,{"$f":"'Division 1'!I4","v":"ASMN Nantes"},null,null,{"$f":"'Division 1'!J4","v":"ASGEN"},null,null,{"$f":"'Division 1'!I8","v":"2FOPEN 44 1"},null,null,{"$f":"'Division 1'!J8","v":"CSAD 49"},null,null,{"$f":"'Division 1'!I12","v":"CSAD 49"},null,null,{"$f":"'Division 1'!J12","v":"ASGEN"},null,null,{"$f":"'Division 1'!I16","v":"FAST 44"},null,null,{"$f":"'Division 1'!J16","v":"2F OPEN 49"},null,null,{"$f":"'Division 1'!I20","v":"2F OPEN 49"},null,null,{"$f":"'Division 1'!J20","v":"CSAD 49"}]
["J1",{"$f":"'Division 1'!I5","v":"2F OPEN 49"},null,null,{"$f":"'Division 1'!J5","v":"2FOPEN 44 1"},null,"J2",{"$f":"'Division 1'!I9","v":"ASGEN"},null,null,{"$f":"'Division 1'!J9","v":"2F OPEN 49"},null,"J3",{"$f":"'Division 1'!I13","v":"2FOPEN 44 1"},null,null,{"$f":"'Division 1'!J13","v":"FAST 44"},null,"J4",{"$f":"'Division 1'!I17","v":"ASGEN"},null,null,{"$f":"'Division 1'!J17","v":"2FOPEN 44 1"},null,"J5",{"$f":"'Division 1'!I21","v":"FAST 44"},null,null,{"$f":"'Division 1'!J21","v":"ASGEN"}]
[null,{"$f":"'Division 1'!I6","v":"CSAD 49"},null,null,{"$f":"'Division 1'!J6","v":"FAST 44"},null,null,{"$f":"'Division 1'!I10","v":"FAST 44"},null,null,{"$f":"'Division 1'!J10","v":"ASMN Nantes"},null,null,{"$f":"'Division 1'!I14","v":"2F OPEN 49"},null,null,{"$f":"'Division 1'!J14","v":"ASMN Nantes"},null,null,{"$f":"'Division 1'!I18","v":"ASMN Nantes"},null,null,{"$f":"'Division 1'!J18","v":"CSAD 49"},null,null,{"$f":"'Division 1'!I22","v":"2FOPEN 44 1"},null,null,{"$f":"'Division 1'!J22","v":"ASMN Nantes"}]
[]
[null,null,null,null,null,null,null,null,null,null,null,null,"DIVISION  2"]
[]
["D2","CLUB","SCORE",null,"CLUB",null,"D2","CLUB","SCORE",null,"CLUB",null,"D2","CLUB","SCORE",null,"CLUB",null,"D2","CLUB","SCORE",null,"CLUB",null,"D2","CLUB","SCORE",null,"CLUB"]
[null,{"$f":"'Division 2'!I4","v":"SGTD Total"},null,null,{"$f":"'Division 2'!J4","v":"AS SRT"},null,null,{"$f":"'Division 2'!I8","v":"ASGESNA"},null,null,{"$f":"'Division 2'!J8","v":"AIRBUS Nantes"},null,null,{"$f":"'Division 2'!I12","v":"AIRBUS Nantes"},null,null,{"$f":"'Division 2'!J12","v":"AS SRT"},null,null,{"$f":"'Division 2'!I16","v":"AIRBUS St Naz"},null,null,{"$f":"'Division 2'!J16","v":"ASLAN"},null,null,{"$f":"'Division 2'!I20","v":"ASLAN"},null,null,{"$f":"'Division 2'!J20","v":"AIRBUS Nantes"}]
["J1",{"$f":"'Division 2'!I5","v":"ASLAN"},null,null,{"$f":"'Division 2'!J5","v":"ASGESNA"},null,"J2",{"$f":"'Division 2'!I9","v":"AS SRT"},null,null,{"$f":"'Division 2'!J9","v":"ASLAN"},null,"J3",{"$f":"'Division 2'!I13","v":"ASGESNA"},null,null,{"$f":"'Division 2'!J13","v":"AIRBUS St Naz"},null,"J4",{"$f":"'Division 2'!I17","v":"AS SRT"},null,null,{"$f":"'Division 2'!J17","v":"ASGESNA"},null,"J5",{"$f":"'Division 2'!I21","v":"AIRBUS St Naz"},null,null,{"$f":"'Division 2'!J21","v":"AS SRT"}]
[null,{"$f":"'Division 2'!I6","v":"AIRBUS Nantes"},null,null,{"$f":"'Division 2'!J6","v":"AIRBUS St Naz"},null,null,{"$f":"'Division 2'!I10","v":"AIRBUS St Naz"},null,null,{"$f":"'Division 2'!J10","v":"SGTD Total"},null,null,{"$f":"'Division 2'!I14","v":"ASLAN"},null,null,{"$f":"'Division 2'!J14","v":"SGTD Total"},null,null,{"$f":"'Division 2'!I18","v":"SGTD Total"},null,null,{"$f":"'Division 2'!J18","v":"AIRBUS Nantes"},null,null,{"$f":"'Division 2'!I22","v":"ASGESNA"},null,null,{"$f":"'Division 2'!J22","v":"SGTD Total"}]
[]
[null,null,null,null,null,null,null,null,null,null,null,null,"DIVISION  3 - POULE A"]
[]
["D3A","CLUB","SCORE",null,"CLUB",null,"D3A","CLUB","SCORE",null,"CLUB",null,"D3A","CLUB","SCORE",null,"CLUB",null,"D3A","CLUB","SCORE",null,"CLUB",null,"D3A","CLUB","SCORE",null,"CLUB"]
[null,{"$f":"'Division 3'!I4","v":"ORANGE MLK"},null,null,{"$f":"'Division 3'!J4","v":"2F OPEN 85"},null,null,{"$f":"'Division 3'!I8","v":"ASMN Nantes 2"},null,null,{"$f":"'Division 3'!J8","v":"ASLAN 2"},null,null,{"$f":"'Division 3'!I12","v":"ASLAN 2"},null,null,{"$f":"'Division 3'!J12","v":"2F OPEN 85"},null,null,{"$f":"'Division 3'!I16","v":"USAC"},null,null,{"$f":"'Division 3'!J16","v":"ATSCAF 44"},null,null,{"$f":"'Division 3'!I20","v":"ATSCAF 44"},null,null,{"$f":"'Division 3'!J20","v":"ASLAN 2"}]
["J1",{"$f":"'Division 3'!I5","v":"ATSCAF 44"},null,null,{"$f":"'Division 3'!J5","v":"ASMN Nantes 2"},null,"J2",{"$f":"'Division 3'!I9","v":"2F OPEN 85"},null,null,{"$f":"'Division 3'!J9","v":"ATSCAF 44"},null,"J3",{"$f":"'Division 3'!I13","v":"ASMN Nantes 2"},null,null,{"$f":"'Division 3'!J13","v":"USAC"},null,"J4",{"$f":"'Division 3'!I17","v":"2F OPEN 85"},null,null,{"$f":"'Division 3'!J17","v":"ASMN Nantes 2"},null,"J5",{"$f":"'Division 3'!I21","v":"USAC"},null,null,{"$f":"'Division 3'!J21","v":"2F OPEN 85"}]
[null,{"$f":"'Division 3'!I6","v":"ASLAN 2"},null,null,{"$f":"'Division 3'!J6","v":"USAC"},null,null,{"$f":"'Division 3'!I10","v":"USAC"},null,null,{"$f":"'Division 3'!J10","v":"ORANGE MLK"},null,null,{"$f":"'Division 3'!I14","v":"ATSCAF 44"},null,null,{"$f":"'Division 3'!J14","v":"ORANGE MLK"},null,null,{"$f":"'Division 3'!I18","v":"ORANGE MLK"},null,null,{"$f":"'Division 3'!J18","v":"ASLAN 2"},null,null,{"$f":"'Division 3'!I22","v":"ASMN Nantes 2"},null,null,{"$f":"'Division 3'!J22","v":"ORANGE MLK"}]
[null,null,null,null,null,null,null,null,null,null,null,null,null,null,null,null,null,null,null,null,null,null," "]
[null,null,null,null,null,null,null,null,null,null,null,null,"DIVISION 3 -  POULE B"]
[]
["D3B","CLUB","SCORE",null,"CLUB",null,"D3B","CLUB","SCORE",null,"CLUB",null,"D3B","CLUB","SCORE",null,"CLUB",null,"D3B","CLUB","SCORE",null,"CLUB",null,null,"CLUB","SCORE",null,"CLUB"]
[null,{"$f":"'Division 3'!O4","v":"PGA Police "},null,null,{"$f":"'Division 3'!P4","v":"ALC44"},null,null,{"$f":"'Division 3'!O8","v":"AS TONUS"},null,null,{"$f":"'Division 3'!P8","v":"TGS France Sport"},null,null,{"$f":"'Division 3'!O12","v":"TGS France Sport"},null,null,{"$f":"'Division 3'!P12","v":"ALC44"},null,null,{"$f":"'Division 3'!O16","v":"2F OPEN 44 2"},null,null,{"$f":"'Division 3'!P16","v":"MANITOU"},null,null,{"$f":"'Division 3'!O20","v":"MANITOU"},null,null,{"$f":"'Division 3'!P20","v":"TGS France Sport"}]
["J1",{"$f":"'Division 3'!O5","v":"MANITOU"},null,null,{"$f":"'Division 3'!P5","v":"AS TONUS"},null,"J2",{"$f":"'Division 3'!O9","v":"ALC44"},null,null,{"$f":"'Division 3'!P9","v":"MANITOU"},null,"J3",{"$f":"'Division 3'!O13","v":"AS TONUS"},null,null,{"$f":"'Division 3'!P13","v":"2F OPEN 44 2"},null,"J4",{"$f":"'Division 3'!O17","v":"ALC44"},null,null,{"$f":"'Division 3'!P17","v":"AS TONUS"},null,"J5",{"$f":"'Division 3'!O21","v":"2F OPEN 44 2"},null,null,{"$f":"'Division 3'!P21","v":"ALC44"}]
[null,{"$f":"'Division 3'!O6","v":"TGS France Sport"},null,null,{"$f":"'Division 3'!P6","v":"2F OPEN 44 2"},null,null,{"$f":"'Division 3'!O10","v":"2F OPEN 44 2"},null,null,{"$f":"'Division 3'!P10","v":"PGA Police "},null,null,{"$f":"'Division 3'!O14","v":"MANITOU"},null,null,{"$f":"'Division 3'!P14","v":"PGA Police "},null,null,{"$f":"'Division 3'!O18","v":"PGA Police "},null,null,{"$f":"'Division 3'!P18","v":"TGS France Sport"},null,null,{"$f":"'Division 3'!O22","v":"AS TONUS"},null,null,{"$f":"'Division 3'!P22","v":"PGA Police "}]

{"sheet":"Classement D1-2-3","index":7,"n_rows":41,"n_cols":10,"rows_kept":41,"cut":false,"hidden":true,"merged":[[33,2,33,9],[1,2,1,9],[4,2,4,9],[6,2,6,9],[15,2,15,9],[24,2,24,9]]}
[]
[null,null,"CHAMPIONNAT de LIGUE GOLF ENTREPRISE 2026 des DIVISIONS 1 - 2 et 3"]
[]
[]
[null,null,"CLASSEMENT GENERAL"]
[]
[null,null,"DIVISION 1"]
[null,null,"Place","club","brut-m1","brut-m2","brut-m3","brut-m4","brut-m5","C-BRUT"]
[null,null,1,"2F OPEN 44",null,null,null,null,null,{"$f":"SUM(E9:I9)","v":0}]
[null,null,4,"ASGEN",null,null,null,null,null,0]
[null,null,5,"CSAD 49",null,null,null,null,null,0]
[null,null,2,"ASMN Nantes",null,null,null,null,null,0]
[null,null,6,"2F OPEN 49",null,null,null,null,null,0]
[null,null,3,"FAST 44",null,null,null,null,null,0]
[]
[null,null,"DIVISION 2"]
[null,null,"Place","club","brut-m1","brut-m2","brut-m3","brut-m4","brut-m5","C-BRUT"]
[null,null,3,"Airbus Nantes",null,null,null,null,null,{"$f":"SUM(E18:I18)","v":0}]
[null,null,5,"Airbus St Nazaire",null,null,null,null,null,0]
[null,null,1,"AS SRT",null,null,null,null,null,0]
[null,null,2,"ASGENA",null,null,null,null,null,0]
[null,null,4,"ASLAN",null,null,null,null,null,0]
[null,null,6,"SGTD Total",null,null,null,null,null,0]
[]
[null,null,"DIVISION 3 - POULE A"]
[null,null,"Place","club","brut-m1","brut-m2","brut-m3","brut-m4","brut-m5","C-BRUT"]
[null,null,5,"2F OPEN 85",null,null,null,null,null,{"$f":"SUM(E27:I27)","v":0}]
[null,null,2,"ASLAN 2",null,null,null,null,null,0]
[null,null,3,"ASM Nantes 2",null,null,null,null,null,0]
[null,null,1,"ATSCAF 44",null,null,null,null,null,0]
[null,null,6,"ORANGE MLK",null,null,null,null,null,0]
[null,null,4,"USAC",null,null,null,null,null,0]
[]
[null,null,"DIVISION 3 - POULE B"]
[null,null,"Place","club","brut-m1","brut-m2","brut-m3","brut-m4","brut-m5","C-BRUT"]
[null,null,5,"2F OPEN 44-2",null,null,null,null,null,{"$f":"SUM(E36:I36)","v":0}]
[null,null,3,"ALC 44",null,null,null,null,null,0]
[null,null,1,"AS TONUS",null,null,null,null,null,0]
[null,null,4,"MANITOU",null,null,null,null,null,0]
[null,null,2,"PGA Police",null,null,null,null,null,0]
[null,null,6,"TGS France Sport",null,null,null,null,null,0]

{"sheet":"Tableau Rencontres D4","index":8,"n_rows":17,"n_cols":13,"rows_kept":17,"cut":false,"hidden":true,"merged":[[0,0,0,12],[1,1,1,2],[1,4,1,5],[1,7,1,8],[1,10,1,11],[2,0,4,0],[5,0,7,0],[8,0,10,0],[11,0,13,0],[14,0,16,0]]}
["Tableau des rencontres de 2026 pour la 4ème Division (version 08/02/26)"]
["Manche","Division 4\nPoule A",null,"Trou 1","Division 4\nPoule B",null,"trou 10","Division 4\nPoule C",null,"Trou 1","Division 4\nPoule D",null,"Trou 10"]
["Manche 1\n14 mars 2026\nSt Jean de Monts\nClub Organisateur\n2FOPEN 85-2",{"$f":"'Division 4'!I4","v":"AGJSEP"},{"$f":"'Division 4'!J4","v":"2F OPEN 85-2"},"9h00\n9h10",{"$f":"'Division 4'!O4","v":"AIRBUS NANTES 2"},{"$f":"'Division 4'!P4","v":"AL Crédit Mutuel"},"9h00\n9h10",{"$f":"'Division 4'!U4","v":"COSTA"},{"$f":"'Division 4'!V4","v":"AGCMA"},"10h00\n10h10",{"$f":"'Division 4'!AA5","v":"ASCAEN"},{"$f":"'Division 4'!AB5","v":"AGJSEP-2"},"10h00\n10h10"]
[null,{"$f":"'Division 4'!I5","v":"ASCM Nantes"},{"$f":"'Division 4'!J5","v":"ATSCAF 44-2"},"9h20\n9h30",{"$f":"'Division 4'!O5","v":"SGTD Total-2"},{"$f":"'Division 4'!P5","v":"CHU Nantes"},"9h20\n9h30",{"$f":"'Division 4'!U5","v":"2F OPEN 85-3"},{"$f":"'Division 4'!V5","v":"AIRBUS NANTES 3"},"10h20\n10h30",{"$f":"'Division 4'!AA4","v":"ASCEMA"},{"$f":"'Division 4'!AB4","v":"TGS France Sport-2"},"10h20\n10h30"]
[null,{"$f":"'Division 4'!I6","v":"ASGEN-2"},{"$f":"'Division 4'!J6","v":"ATSCAF 49"},"9h40\n9h50",{"$f":"'Division 4'!O6","v":"CE MMA Le Mans"},{"$f":"'Division 4'!P6","v":"AS BPGO "},"9h40\n9h50",{"$f":"'Division 4'!U6","v":"MANITOU-2"},{"$f":"'Division 4'!V6","v":"ASAA"},"10h40\n10h50",{"$f":"'Division 4'!AA6","v":"USAC 2"},{"$f":"'Division 4'!AB6","v":"CSAD 49"},"10h40\n10h50"]
["Manche 2\n 04 avril 2026\nAngers La Pérrière\nClub Organisateur ATSCAF49",{"$f":"'Division 4'!I10","v":"ATSCAF 49"},{"$f":"'Division 4'!J10","v":"AGJSEP"},"9h00\n9h10",{"$f":"'Division 4'!O8","v":"CHU Nantes"},{"$f":"'Division 4'!P8","v":"CE MMA Le Mans"},"9h00\n9h10",{"$f":"'Division 4'!U9","v":"AGCMA"},{"$f":"'Division 4'!V9","v":"2F OPEN 85-3"},"10h00\n10h10",{"$f":"'Division 4'!AA10","v":"CSAD 49"},{"$f":"'Division 4'!AB10","v":"ASCEMA"},"10h00\n10h10"]
[null,{"$f":"'Division 4'!I8","v":"ATSCAF 44-2"},{"$f":"'Division 4'!J8","v":"ASGEN-2"},"9h20\n9h30",{"$f":"'Division 4'!O9","v":"AL Crédit Mutuel"},{"$f":"'Division 4'!P9","v":"SGTD Total-2"},"9h20\n9h30",{"$f":"'Division 4'!U8","v":"AIRBUS NANTES 3"},{"$f":"'Division 4'!V8","v":"MANITOU-2"},"10h20\n10h30",{"$f":"'Division 4'!AA9","v":"TGS France Sport-2"},{"$f":"'Division 4'!AB9","v":"ASCAEN"},"10h20\n10h30"]
[null,{"$f":"'Division 4'!I9","v":"2F OPEN 85-2"},{"$f":"'Division 4'!J9","v":"ASCM Nantes"},"9h40\n9h50",{"$f":"'Division 4'!O10","v":"AS BPGO "},{"$f":"'Division 4'!P10","v":"AIRBUS NANTES 2"},"9h40\n9h50",{"$f":"'Division 4'!U10","v":"ASAA"},{"$f":"'Division 4'!V10","v":"COSTA"},"10h40\n10h50",{"$f":"'Division 4'!AA8","v":"AGJSEP-2"},{"$f":"'Division 4'!AB8","v":"USAC 2"},"10h40\n10h50"]
["Manche 3\n 05 septembre 2026\nNantes Erdre\nClub Organisateur\nAL Crédit Mutuel",{"$f":"'Division 4'!I14","v":"ASCM Nantes"},{"$f":"'Division 4'!J14","v":"AGJSEP"},"9h00\n9h10",{"$f":"'Division 4'!O14","v":"SGTD Total-2"},{"$f":"'Division 4'!P14","v":"AIRBUS NANTES 2"},"9h00\n9h10",{"$f":"'Division 4'!U14","v":"2F OPEN 85-3"},{"$f":"'Division 4'!V14","v":"COSTA"},"10h00\n10h10",{"$f":"'Division 4'!AA13","v":"AGJSEP-2"},{"$f":"'Division 4'!AB13","v":"CSAD 49"},"10h00\n10h10"]
[null,{"$f":"'Division 4'!I13","v":"ATSCAF 44-2"},{"$f":"'Division 4'!J13","v":"ATSCAF 49"},"9h20\n9h30",{"$f":"'Division 4'!O13","v":"CHU Nantes"},{"$f":"'Division 4'!P13","v":"AS BPGO "},"9h20\n9h30",{"$f":"'Division 4'!U13","v":"AIRBUS NANTES 3"},{"$f":"'Division 4'!V13","v":"ASAA"},"10h20\n10h30",{"$f":"'Division 4'!AA12","v":"USAC 2"},{"$f":"'Division 4'!AB12","v":"TGS France Sport-2"},"10h20\n10h30"]
[null,{"$f":"'Division 4'!I12","v":"ASGEN-2"},{"$f":"'Division 4'!J12","v":"2F OPEN 85-2"},"9h40\n9h50",{"$f":"'Division 4'!O12","v":"CE MMA Le Mans"},{"$f":"'Division 4'!P12","v":"AL Crédit Mutuel"},"9h40\n9h50",{"$f":"'Division 4'!U12","v":"MANITOU-2"},{"$f":"'Division 4'!V12","v":"AGCMA"},"10h40\n10h50",{"$f":"'Division 4'!AA14","v":"ASCAEN"},{"$f":"'Division 4'!AB14","v":"ASCEMA"},"10h40\n10h50"]
["Manche 4\n26 septembre 2026\nLaval\nClub Organisateur\nCE MMA Le Mans",{"$f":"'Division 4'!I16","v":"ATSCAF 49"},{"$f":"'Division 4'!J16","v":"ASCM Nantes"},"9h00\n9h10",{"$f":"'Division 4'!O18","v":"AIRBUS NANTES 2"},{"$f":"'Division 4'!P18","v":"CE MMA Le Mans"},"9h00\n9h10",{"$f":"'Division 4'!U16","v":"ASAA"},{"$f":"'Division 4'!V16","v":"2F OPEN 85-3"},"10h00\n10h10",{"$f":"'Division 4'!AA18","v":"ASCEMA"},{"$f":"'Division 4'!AB18","v":"USAC 2"},"10h00\n10h10"]
[null,{"$f":"'Division 4'!I18","v":"AGJSEP"},{"$f":"'Division 4'!J18","v":"ASGEN-2"},"9h20\n9h30",{"$f":"'Division 4'!O17","v":"AL Crédit Mutuel"},{"$f":"'Division 4'!P17","v":"CHU Nantes"},"9h20\n9h30",{"$f":"'Division 4'!U17","v":"AGCMA"},{"$f":"'Division 4'!V17","v":"AIRBUS NANTES 3"},"10h20\n10h30",{"$f":"'Division 4'!AA16","v":"CSAD 49"},{"$f":"'Division 4'!AB16","v":"ASCAEN"},"10h20\n10h30"]
[null,{"$f":"'Division 4'!I17","v":"2F OPEN 85-2"},{"$f":"'Division 4'!J17","v":"ATSCAF 44-2"},"9h40\n9h50",{"$f":"'Division 4'!O16","v":"AS BPGO "},{"$f":"'Division 4'!P16","v":"SGTD Total-2"},"9h40\n9h50",{"$f":"'Division 4'!U18","v":"COSTA"},{"$f":"'Division 4'!V18","v":"MANITOU-2"},"10h40\n10h50",{"$f":"'Division 4'!AA17","v":"TGS France Sport-2"},{"$f":"'Division 4'!AB17","v":"AGJSEP-2"},"10h40\n10h50"]
["Manche 5\n10 octobre 2026\nSavenay\nClub Organisateur\nASGEN 2",{"$f":"'Division 4'!I20","v":"ASCM Nantes"},{"$f":"'Division 4'!J20","v":"ASGEN-2"},"9h00\n9h10",{"$f":"'Division 4'!O22","v":"CHU Nantes"},{"$f":"'Division 4'!P22","v":"AIRBUS NANTES 2"},"9h00\n9h10",{"$f":"'Division 4'!U20","v":"2F OPEN 85-3"},{"$f":"'Division 4'!V20","v":"MANITOU-2"},"10h00\n10h10",{"$f":"'Division 4'!AA20","v":"ASCAEN"},{"$f":"'Division 4'!AB20","v":"USAC 2"},"10h00\n10h10"]
[null,{"$f":"'Division 4'!I22","v":"ATSCAF 44-2"},{"$f":"'Division 4'!J22","v":"AGJSEP"},"9h20\n9h30",{"$f":"'Division 4'!O21","v":"AS BPGO "},{"$f":"'Division 4'!P21","v":"AL Crédit Mutuel"},"9h20\n9h30",{"$f":"'Division 4'!U21","v":"ASAA"},{"$f":"'Division 4'!V21","v":"AGCMA"},"10h20\n10h30",{"$f":"'Division 4'!AA21","v":"CSAD 49"},{"$f":"'Division 4'!AB21","v":"TGS France Sport-2"},"10h20\n10h30"]
[null,{"$f":"'Division 4'!I21","v":"ATSCAF 49"},{"$f":"'Division 4'!J21","v":"2F OPEN 85-2"},"9h40\n9h50",{"$f":"'Division 4'!O20","v":"SGTD Total-2"},{"$f":"'Division 4'!P20","v":"CE MMA Le Mans"},"9h40\n9h50",{"$f":"'Division 4'!U22","v":"AIRBUS NANTES 3"},{"$f":"'Division 4'!V22","v":"COSTA"},"10h40\n10h50",{"$f":"'Division 4'!AA22","v":"AGJSEP-2"},{"$f":"'Division 4'!AB22","v":"ASCEMA"},"10h40\n10h50"]

{"sheet":"Résultats des Rencontres D4","index":9,"n_rows":32,"n_cols":29,"rows_kept":32,"cut":false,"hidden":false,"merged":[[1,1,1,27],[3,0,3,4],[3,6,3,10],[3,12,3,16],[3,18,3,22],[3,24,3,28],[5,12,5,16],[7,2,7,3],[7,8,7,9],[7,14,7,15],[7,20,7,21],[7,26,7,27],[12,12,12,16],[14,2,14,3],[14,8,14,9],[14,14,14,15],[14,20,14,21],[14,26,14,27],[19,12,19,16],[21,2,21,3],[21,8,21,9],[21,14,21,15],[21,20,21,21],[21,26,21,27],[26,12,26,16],[28,2,28,3],[28,8,28,9],[28,14,28,15],[28,20,28,21],[28,26,28,27]]}
[]
[null,"CHAMPIONNAT de LIGUE GOLF ENTREPRISE 2026 des DIVISIONS 4"]
[]
["1ère Manche 14 mars",null,null,null,null,null,"2ème Manche 04 avril",null,null,null,null,null,"3ème Manche 05 septembre",null,null,null,null,null,"4ème Manche 26 septembre",null,null,null,null,null,"5ème Manche 10 octobre"]
[]
[null,null,null,null,null,null,null,null,null,null,null,null,"DIVISION  4 Poule A"]
[]
["D4A","CLUB","SCORE",null,"CLUB",null,"D4A","CLUB","SCORE",null,"CLUB",null,"D4A","CLUB","SCORE",null,"CLUB",null,"D4A","CLUB","SCORE",null,"CLUB",null,"D4A","CLUB","SCORE",null,"CLUB"]
[null,{"$f":"'Division 4'!I4","v":"AGJSEP"},5.5,0.5,{"$f":"'Division 4'!J4","v":"2F OPEN 85-2"},null,null,{"$f":"'Division 4'!I8","v":"ATSCAF 44-2"},null,null,{"$f":"'Division 4'!J8","v":"ASGEN-2"},null,null,{"$f":"'Division 4'!I12","v":"ASGEN-2"},null,null,{"$f":"'Division 4'!J12","v":"2F OPEN 85-2"},null,null,{"$f":"'Division 4'!I16","v":"ATSCAF 49"},null,null,{"$f":"'Division 4'!J16","v":"ASCM Nantes"},null,null,{"$f":"'Division 4'!I20","v":"ASCM Nantes"},null,null,{"$f":"'Division 4'!J20","v":"ASGEN-2"}]
["J1",{"$f":"'Division 4'!I5","v":"ASCM Nantes"},4.5,1.5,{"$f":"'Division 4'!J5","v":"ATSCAF 44-2"},null,"J2",{"$f":"'Division 4'!I9","v":"2F OPEN 85-2"},null,null,{"$f":"'Division 4'!J9","v":"ASCM Nantes"},null,"J3",{"$f":"'Division 4'!I13","v":"ATSCAF 44-2"},null,null,{"$f":"'Division 4'!J13","v":"ATSCAF 49"},null,"J4",{"$f":"'Division 4'!I17","v":"2F OPEN 85-2"},null,null,{"$f":"'Division 4'!J17","v":"ATSCAF 44-2"},null,"J5",{"$f":"'Division 4'!I21","v":"ATSCAF 49"},null,null,{"$f":"'Division 4'!J21","v":"2F OPEN 85-2"}]
[null,{"$f":"'Division 4'!I6","v":"ASGEN-2"},3.5,2.5,{"$f":"'Division 4'!J6","v":"ATSCAF 49"},null,null,{"$f":"'Division 4'!I10","v":"ATSCAF 49"},null,null,{"$f":"'Division 4'!J10","v":"AGJSEP"},null,null,{"$f":"'Division 4'!I14","v":"ASCM Nantes"},null,null,{"$f":"'Division 4'!J14","v":"AGJSEP"},null,null,{"$f":"'Division 4'!I18","v":"AGJSEP"},null,null,{"$f":"'Division 4'!J18","v":"ASGEN-2"},null,null,{"$f":"'Division 4'!I22","v":"ATSCAF 44-2"},null,null,{"$f":"'Division 4'!J22","v":"AGJSEP"}]
[]
[null,null,null,null,null,null,null,null,null,null,null,null,"DIVISION  4 Poule B"]
[]
["D4B","CLUB","SCORE",null,"CLUB",null,"D4B","CLUB","SCORE",null,"CLUB",null,"D4B","CLUB","SCORE",null,"CLUB",null,"D4B","CLUB","SCORE",null,"CLUB",null,"D4B","CLUB","SCORE",null,"CLUB"]
[null,{"$f":"'Division 4'!O4","v":"AIRBUS NANTES 2"},2,4,{"$f":"'Division 4'!P4","v":"AL Crédit Mutuel"},null,null,{"$f":"'Division 4'!O8","v":"CHU Nantes"},null,null,{"$f":"'Division 4'!P8","v":"CE MMA Le Mans"},null,null,{"$f":"'Division 4'!O12","v":"CE MMA Le Mans"},null,null,{"$f":"'Division 4'!P12","v":"AL Crédit Mutuel"},null,null,{"$f":"'Division 4'!O16","v":"AS BPGO "},null,null,{"$f":"'Division 4'!P16","v":"SGTD Total-2"},null,null,{"$f":"'Division 4'!O20","v":"SGTD Total-2"},null,null,{"$f":"'Division 4'!P20","v":"CE MMA Le Mans"}]
["J1",{"$f":"'Division 4'!O5","v":"SGTD Total-2"},4.5,1.5,{"$f":"'Division 4'!P5","v":"CHU Nantes"},null,"J2",{"$f":"'Division 4'!O9","v":"AL Crédit Mutuel"},null,null,{"$f":"'Division 4'!P9","v":"SGTD Total-2"},null,"J3",{"$f":"'Division 4'!O13","v":"CHU Nantes"},null,null,{"$f":"'Division 4'!P13","v":"AS BPGO "},null,"J4",{"$f":"'Division 4'!O17","v":"AL Crédit Mutuel"},null,null,{"$f":"'Division 4'!P17","v":"CHU Nantes"},null,"J5",{"$f":"'Division 4'!O21","v":"AS BPGO "},null,null,{"$f":"'Division 4'!P21","v":"AL Crédit Mutuel"}]
[null,{"$f":"'Division 4'!O6","v":"CE MMA Le Mans"},1,5,{"$f":"'Division 4'!P6","v":"AS BPGO "},null,null,{"$f":"'Division 4'!O10","v":"AS BPGO "},null,null,{"$f":"'Division 4'!P10","v":"AIRBUS NANTES 2"},null,null,{"$f":"'Division 4'!O14","v":"SGTD Total-2"},null,null,{"$f":"'Division 4'!P14","v":"AIRBUS NANTES 2"},null,null,{"$f":"'Division 4'!O18","v":"AIRBUS NANTES 2"},null,null,{"$f":"'Division 4'!P18","v":"CE MMA Le Mans"},null,null,{"$f":"'Division 4'!O22","v":"CHU Nantes"},null,null,{"$f":"'Division 4'!P22","v":"AIRBUS NANTES 2"}]
[]
[null,null,null,null,null,null,null,null,null,null,null,null,"DIVISION  4 Poule C"]
[]
["D4C","CLUB","SCORE",null,"CLUB",null,"D4C","CLUB","SCORE",null,"CLUB",null,"D4C","CLUB","SCORE",null,"CLUB",null,"D4C","CLUB","SCORE",null,"CLUB",null,"D4C","CLUB","SCORE",null,"CLUB"]
[null,{"$f":"'Division 4'!U4","v":"COSTA"},4.5,1.5,{"$f":"'Division 4'!V4","v":"AGCMA"},null,null,{"$f":"'Division 4'!U8","v":"AIRBUS NANTES 3"},null,null,{"$f":"'Division 4'!V8","v":"MANITOU-2"},null,null,{"$f":"'Division 4'!U12","v":"MANITOU-2"},null,null,{"$f":"'Division 4'!V12","v":"AGCMA"},null,null,{"$f":"'Division 4'!U16","v":"ASAA"},null,null,{"$f":"'Division 4'!V16","v":"2F OPEN 85-3"},null,null,{"$f":"'Division 4'!U20","v":"2F OPEN 85-3"},null,null,{"$f":"'Division 4'!V20","v":"MANITOU-2"}]
["J1",{"$f":"'Division 4'!U5","v":"2F OPEN 85-3"},3.5,2.5,{"$f":"'Division 4'!V5","v":"AIRBUS NANTES 3"},null,"J2",{"$f":"'Division 4'!U9","v":"AGCMA"},null,null,{"$f":"'Division 4'!V9","v":"2F OPEN 85-3"},null,"J3",{"$f":"'Division 4'!U13","v":"AIRBUS NANTES 3"},null,null,{"$f":"'Division 4'!V13","v":"ASAA"},null,"J4",{"$f":"'Division 4'!U17","v":"AGCMA"},null,null,{"$f":"'Division 4'!V17","v":"AIRBUS NANTES 3"},null,"J5",{"$f":"'Division 4'!U21","v":"ASAA"},null,null,{"$f":"'Division 4'!V21","v":"AGCMA"}]
[null,{"$f":"'Division 4'!U6","v":"MANITOU-2"},5,1,{"$f":"'Division 4'!V6","v":"ASAA"},null,null,{"$f":"'Division 4'!U10","v":"ASAA"},null,null,{"$f":"'Division 4'!V10","v":"COSTA"},null,null,{"$f":"'Division 4'!U14","v":"2F OPEN 85-3"},null,null,{"$f":"'Division 4'!V14","v":"COSTA"},null,null,{"$f":"'Division 4'!U18","v":"COSTA"},null,null,{"$f":"'Division 4'!V18","v":"MANITOU-2"},null,null,{"$f":"'Division 4'!U22","v":"AIRBUS NANTES 3"},null,null,{"$f":"'Division 4'!V22","v":"COSTA"}]
[null,null,null,null,null,null,null,null,null,null,null,null,null,null,null,null,null,null,null,null,null,null," "]
[null,null,null,null,null,null,null,null,null,null,null,null,"DIVISION  4 Poule D"]
[]
["D4D","CLUB","SCORE",null,"CLUB",null,"D4D","CLUB","SCORE",null,"CLUB",null,"D4D","CLUB","SCORE",null,"CLUB",null,"D4D","CLUB","SCORE",null,"CLUB",null,"D4D","CLUB","SCORE",null,"CLUB"]
[null,{"$f":"'Division 4'!AA4","v":"ASCEMA"},3,3,{"$f":"'Division 4'!AB4","v":"TGS France Sport-2"},null,null,{"$f":"'Division 4'!AA8","v":"AGJSEP-2"},null,null,{"$f":"'Division 4'!AB8","v":"USAC 2"},null,null,{"$f":"'Division 4'!AA12","v":"USAC 2"},null,null,{"$f":"'Division 4'!AB12","v":"TGS France Sport-2"},null,null,{"$f":"'Division 4'!AA16","v":"CSAD 49"},2,4,{"$f":"'Division 4'!AB16","v":"ASCAEN"},null,null,{"$f":"'Division 4'!AA20","v":"ASCAEN"},null,null,{"$f":"'Division 4'!AB20","v":"USAC 2"}]
["J1",{"$f":"'Division 4'!AA5","v":"ASCAEN"},5,1,{"$f":"'Division 4'!AB5","v":"AGJSEP-2"},null,"J2",{"$f":"'Division 4'!AA9","v":"TGS France Sport-2"},null,null,{"$f":"'Division 4'!AB9","v":"ASCAEN"},null,"J3",{"$f":"'Division 4'!AA13","v":"AGJSEP-2"},null,null,{"$f":"'Division 4'!AB13","v":"CSAD 49"},null,"J4",{"$f":"'Division 4'!AA17","v":"TGS France Sport-2"},2.5,3.5,{"$f":"'Division 4'!AB17","v":"AGJSEP-2"},null,"J5",{"$f":"'Division 4'!AA21","v":"CSAD 49"},null,null,{"$f":"'Division 4'!AB21","v":"TGS France Sport-2"}]
[null,{"$f":"'Division 4'!AA6","v":"USAC 2"},1,5,{"$f":"'Division 4'!AB6","v":"CSAD 49"},null,null,{"$f":"'Division 4'!AA10","v":"CSAD 49"},null,null,{"$f":"'Division 4'!AB10","v":"ASCEMA"},null,null,{"$f":"'Division 4'!AA14","v":"ASCAEN"},null,null,{"$f":"'Division 4'!AB14","v":"ASCEMA"},null,null,{"$f":"'Division 4'!AA18","v":"ASCEMA"},4.5,1.5,{"$f":"'Division 4'!AB18","v":"USAC 2"},null,null,{"$f":"'Division 4'!AA22","v":"AGJSEP-2"},null,null,{"$f":"'Division 4'!AB22","v":"ASCEMA"}]

{"sheet":"Classement D4","index":10,"n_rows":41,"n_cols":10,"rows_kept":41,"cut":false,"hidden":false,"merged":[[33,2,33,9],[1,2,1,9],[4,2,4,9],[6,2,6,9],[15,2,15,9],[24,2,24,9]]}
[]
[null,null,"CHAMPIONNAT de LIGUE GOLF ENTREPRISE 2026 des DIVISIONS 4"]
[]
[]
[null,null,"CLASSEMENT GENERAL"]
[]
[null,null,"DIVISION 4 Poule A"]
[null,null,"Place","club","brut-m1","brut-m2","brut-m3","brut-m4","brut-m5","C-BRUT"]
[null,null,5,"AGJSEP",5,null,null,null,null,{"$f":"SUM(E9:I9)","v":5}]
[null,null,4,"ASCM Nantes",5,null,null,null,null,{"$f":"SUM(E10:I10)","v":5}]
[null,null,3,"ASGEN 2",5,null,null,null,null,{"$f":"SUM(E11:I11)","v":5}]
[null,null,1,"2F OPEN 85-2",3,null,null,null,null,{"$f":"SUM(E12:I12)","v":3}]
[null,null,2,"ATSCAF 44-2",3,null,null,null,null,{"$f":"SUM(E13:I13)","v":3}]
[null,null,6,"ATSCAF 49",3,null,null,null,null,{"$f":"SUM(E14:I14)","v":3}]
[]
[null,null,"DIVISION 4 Poule B"]
[null,null,"Place","club","brut-m1","brut-m2","brut-m3","brut-m4","brut-m5","C-BRUT"]
[null,null,6,"AL Crédit Mutuel",5,null,null,null,null,{"$f":"SUM(E18:I18)","v":5}]
[null,null,5,"AS BPGO",5,null,null,null,null,{"$f":"SUM(E19:I19)","v":5}]
[null,null,3,"SGD Total 2",5,null,null,null,null,{"$f":"SUM(E20:I20)","v":5}]
[null,null,4,"AIRBUS Nantes 2",3,null,null,null,null,{"$f":"SUM(E21:I21)","v":3}]
[null,null,2,"CE MMA Le Mans",3,null,null,null,null,{"$f":"SUM(E22:I22)","v":3}]
[null,null,1,"CHU Nantes",3,null,null,null,null,{"$f":"SUM(E23:I23)","v":3}]
[]
[null,null,"DIVISION 4 - POULE C"]
[null,null,"Place","club","brut-m1","brut-m2","brut-m3","brut-m4","brut-m5","C-BRUT"]
[null,null,4,"2F OPEN 85-3",5,null,null,null,null,{"$f":"SUM(E27:I27)","v":5}]
[null,null,5,"COSTA",5,null,null,null,null,{"$f":"SUM(E28:I28)","v":5}]
[null,null,3,"MANITOU-2",5,null,null,null,null,{"$f":"SUM(E29:I29)","v":5}]
[null,null,1,"AGCMA",3,null,null,null,null,{"$f":"SUM(E30:I30)","v":3}]
[null,null,2,"AIRBUS Nantes 3",3,null,null,null,null,{"$f":"SUM(E31:I31)","v":3}]
[null,null,6,"ASAA",3,null,null,null,null,{"$f":"SUM(E32:I32)","v":3}]
[]
[null,null,"DIVISION 4 - POULE D"]
[null,null,"Place","club","brut-m1","brut-m2","brut-m3","brut-m4","brut-m5","C-BRUT"]
[null,null,3,"ASCAEN",5,null,null,null,null,{"$f":"SUM(E36:I36)","v":5}]
[null,null,6,"CSAD 49",5,null,null,null,null,{"$f":"SUM(E37:I37)","v":5}]
[null,null,5,"ASCEMA",4,null,null,null,null,{"$f":"SUM(E38:I38)","v":4}]
[null,null,4,"TGS France Sport 2",4,null,null,null,null,{"$f":"SUM(E39:I39)","v":4}]
[null,null,2,"AGJSEP-2",3,null,null,null,null,{"$f":"SUM(E40:I40)","v":3}]
[null,null,1,"USAC 2",3,null,null,null,null,{"$f":"SUM(E41:I41)","v":3}]